[Event "Live Chess"]
[Site "Chess.com"]
[Date "2024.06.02"]
[Round "-"]
[White "Andriy_Yaremovych"]
[Black "Ferrarifan27"]
[Result "0-1"]
[WhiteElo "1620"]
[BlackElo "2168"]
[TimeControl "300"]
[EndTime "4:40:07 PDT"]
[Termination "Ferrarifan27 won by resignation"]

1. e4 {[%clk 0:04:58.9]} 1... e5 {[%clk 0:04:48.5]} 2. Nc3 {[%clk 0:04:58.8]}
2... Nc6 {[%clk 0:04:46.5]} 3. f4 {[%clk 0:04:56.9]} 3... d6 {[%clk 0:04:44.4]}
4. Nf3 {[%clk 0:04:56.8]} 4... Be7 {[%clk 0:04:33.8]} 5. Bc4 {[%clk 0:04:55.8]}
5... Bg4 {[%clk 0:04:31.7]} 6. fxe5 {[%clk 0:04:53]} 6... Nxe5 {[%clk
0:04:29.8]} 7. Be2 {[%clk 0:04:51]} 7... Nxf3+ {[%clk 0:04:15.1]} 8. Bxf3 {[%clk
0:04:50.9]} 8... Bxf3 {[%clk 0:04:14.3]} 9. Qxf3 {[%clk 0:04:50]} 9... Nf6
{[%clk 0:04:13.8]} 10. d3 {[%clk 0:04:48.8]} 10... O-O {[%clk 0:04:12.6]} 11.
Be3 {[%clk 0:04:47.4]} 11... Re8 {[%clk 0:04:01.6]} 12. O-O-O {[%clk 0:04:45.8]}
12... c6 {[%clk 0:03:49.1]} 13. g4 {[%clk 0:04:42.3]} 13... Nd7 {[%clk
0:03:39.3]} 14. h4 {[%clk 0:04:40]} 14... Ne5 {[%clk 0:03:36.4]} 15. Qh3 {[%clk
0:04:37.5]} 15... d5 {[%clk 0:03:34.5]} 16. exd5 {[%clk 0:04:35.3]} 16... cxd5
{[%clk 0:03:32.9]} 17. Bd2 {[%clk 0:04:32.3]} 17... Rc8 {[%clk 0:03:27.1]} 18.
Kb1 {[%clk 0:04:30.7]} 18... d4 {[%clk 0:03:24.3]} 19. Ne4 {[%clk 0:04:29.4]}
19... Qc7 {[%clk 0:03:19.6]} 20. Rc1 {[%clk 0:04:26.8]} 20... Qb6 {[%clk
0:03:09.4]} 21. b3 {[%clk 0:04:20.4]} 21... Ba3 {[%clk 0:03:06.8]} 22. Rcf1
{[%clk 0:04:18.4]} 22... Qc7 {[%clk 0:03:04.8]} 23. c4 {[%clk 0:04:12.8]} 23...
dxc3 {[%clk 0:02:59.5]} 24. Bxc3 {[%clk 0:04:11.8]} 24... Rcd8 {[%clk
0:02:44.4]} 25. d4 {[%clk 0:04:08.4]} 25... Ng6 {[%clk 0:02:36.8]} 26. Ng5
{[%clk 0:04:06.7]} 26... f6 {[%clk 0:02:31.4]} 27. Nf3 {[%clk 0:04:05]} 27...
Qxc3 {[%clk 0:02:27.4]} 0-1

[Event "Live Chess"]
[Site "Chess.com"]
[Date "2024.06.02"]
[Round "-"]
[White "StoreySniper"]
[Black "Isambard_Thomas"]
[Result "1-0"]
[WhiteElo "2503"]
[BlackElo "2195"]
[TimeControl "300"]
[EndTime "4:40:09 PDT"]
[Termination "StoreySniper won by resignation"]

1. e4 {[%clk 0:04:58.2]} 1... Nc6 {[%clk 0:04:58.5]} 2. d4 {[%clk 0:04:56.1]}
2... d5 {[%clk 0:04:56.8]} 3. e5 {[%clk 0:04:53.8]} 3... Bf5 {[%clk 0:04:55.9]}
4. c3 {[%clk 0:04:52.9]} 4... f6 {[%clk 0:04:53.2]} 5. Nf3 {[%clk 0:04:43.1]}
5... e6 {[%clk 0:04:51.1]} 6. Bd3 {[%clk 0:04:37.6]} 6... Bxd3 {[%clk
0:04:48.8]} 7. Qxd3 {[%clk 0:04:37]} 7... Be7 {[%clk 0:04:47]} 8. O-O {[%clk
0:04:35.4]} 8... f5 {[%clk 0:04:40.8]} 9. b4 {[%clk 0:04:28.9]} 9... Qd7 {[%clk
0:04:31.9]} 10. b5 {[%clk 0:04:26.8]} 10... Nd8 {[%clk 0:04:31]} 11. a4 {[%clk
0:04:21.6]} 11... c6 {[%clk 0:04:20.8]} 12. c4 {[%clk 0:04:14.9]} 12... h6
{[%clk 0:04:16.6]} 13. bxc6 {[%clk 0:04:09.5]} 13... Nxc6 {[%clk 0:04:10.8]} 14.
cxd5 {[%clk 0:04:06.8]} 14... Qxd5 {[%clk 0:04:06.7]} 15. Nc3 {[%clk 0:04:05.1]}
15... Nb4 {[%clk 0:03:38.1]} 16. Nxd5 {[%clk 0:04:00.8]} 16... Nxd3 {[%clk
0:03:35.4]} 17. Nc7+ {[%clk 0:03:59.7]} 17... Kd7 {[%clk 0:03:33.5]} 18. Nxa8
{[%clk 0:03:58.7]} 18... Bb4 {[%clk 0:03:20.4]} 19. Ba3 {[%clk 0:03:47]} 19...
Ne7 {[%clk 0:03:14.1]} 20. Bxb4 {[%clk 0:03:39.7]} 20... Nxb4 {[%clk 0:03:13]}
21. Rab1 {[%clk 0:03:35.7]} 21... Rxa8 {[%clk 0:03:11.6]} 22. Rxb4 {[%clk
0:03:34.1]} 22... b6 {[%clk 0:03:11]} 23. a5 {[%clk 0:03:26.5]} 23... Nd5 {[%clk
0:03:08.4]} 24. Rb5 {[%clk 0:03:22.7]} 24... Nc3 {[%clk 0:03:04]} 25. Rb3 {[%clk
0:03:18.3]} 25... Nd5 {[%clk 0:02:56.5]} 26. axb6 {[%clk 0:03:13.5]} 26... axb6
{[%clk 0:02:46]} 27. Rfb1 {[%clk 0:03:11.3]} 27... Ra2 {[%clk 0:02:44.6]} 28. g3
{[%clk 0:03:09.4]} 28... g5 {[%clk 0:02:39.8]} 29. Rxb6 {[%clk 0:03:02.4]} 29...
Nxb6 {[%clk 0:02:31.7]} 30. Rxb6 {[%clk 0:03:00.4]} 30... g4 {[%clk 0:02:31.1]}
31. Nh4 {[%clk 0:02:53.8]} 31... Rd2 {[%clk 0:02:24.2]} 32. Rd6+ {[%clk
0:02:52.7]} 32... Ke7 {[%clk 0:02:22.7]} 33. Ng6+ {[%clk 0:02:51.8]} 33... Kf7
{[%clk 0:02:21.3]} 34. Nf4 {[%clk 0:02:51.1]} 34... Rd1+ {[%clk 0:02:17]} 35.
Kg2 {[%clk 0:02:49.9]} 35... Rd2 {[%clk 0:02:16.4]} 36. Nxe6 {[%clk 0:02:48.2]}
1-0

[Event "Live Chess"]
[Site "Chess.com"]
[Date "2024.06.02"]
[Round "-"]
[White "Pandreq"]
[Black "seasidecastle27"]
[Result "0-1"]
[WhiteElo "1234"]
[BlackElo "1948"]
[TimeControl "300"]
[EndTime "4:40:12 PDT"]
[Termination "seasidecastle27 won on time"]

1. d4 {[%clk 0:04:58.6]} 1... e6 {[%clk 0:04:57.7]} 2. c4 {[%clk 0:04:57.5]}
2... d5 {[%clk 0:04:55.7]} 3. cxd5 {[%clk 0:04:55.5]} 3... exd5 {[%clk
0:04:54.3]} 4. Nc3 {[%clk 0:04:55.1]} 4... Nf6 {[%clk 0:04:53]} 5. Nf3 {[%clk
0:04:54.8]} 5... Be7 {[%clk 0:04:51.8]} 6. Bf4 {[%clk 0:04:54.3]} 6... c6 {[%clk
0:04:50.2]} 7. e3 {[%clk 0:04:53.7]} 7... O-O {[%clk 0:04:46.4]} 8. Bd3 {[%clk
0:04:53]} 8... Bg4 {[%clk 0:04:43.6]} 9. O-O {[%clk 0:04:51.9]} 9... Nbd7 {[%clk
0:04:42.4]} 10. h3 {[%clk 0:04:50.7]} 10... Bh5 {[%clk 0:04:40.2]} 11. Be2
{[%clk 0:04:47.6]} 11... Ne4 {[%clk 0:04:34.9]} 12. Nxe4 {[%clk 0:04:45.3]}
12... dxe4 {[%clk 0:04:33.3]} 13. Nd2 {[%clk 0:04:44.8]} 13... Bxe2 {[%clk
0:04:29.5]} 14. Qxe2 {[%clk 0:04:43.9]} 14... Nf6 {[%clk 0:04:27]} 15. Nc4
{[%clk 0:04:39.8]} 15... Nd5 {[%clk 0:04:19.9]} 16. Bg3 {[%clk 0:04:34.6]} 16...
Nb6 {[%clk 0:04:12.1]} 17. Qc2 {[%clk 0:04:22.8]} 17... Qd5 {[%clk 0:04:07.8]}
18. Nd2 {[%clk 0:04:15.9]} 18... f5 {[%clk 0:04:02.4]} 19. Qb3 {[%clk
0:04:04.2]} 19... Rac8 {[%clk 0:03:51.7]} 20. Rac1 {[%clk 0:03:48.8]} 20... Rfd8
{[%clk 0:03:41.7]} 21. Be5 {[%clk 0:03:35.3]} 21... Kf8 {[%clk 0:03:33.8]} 22.
Qxd5 {[%clk 0:03:25.5]} 22... cxd5 {[%clk 0:03:28.3]} 23. Rxc8 {[%clk
0:03:24.3]} 23... Rxc8 {[%clk 0:03:26.9]} 24. Nb3 {[%clk 0:03:21]} 24... Nd7
{[%clk 0:03:23.1]} 25. Bg3 {[%clk 0:03:14.3]} 25... b6 {[%clk 0:03:12.1]} 26. a3
{[%clk 0:02:56.5]} 26... Rc2 {[%clk 0:03:09.1]} 27. Rb1 {[%clk 0:02:53.8]} 27...
Ke8 {[%clk 0:02:58.7]} 28. f3 {[%clk 0:02:35.6]} 28... Nf6 {[%clk 0:02:53]} 29.
f4 {[%clk 0:02:30.1]} 29... Nh5 {[%clk 0:02:43.2]} 30. Be1 {[%clk 0:02:28.5]}
30... g6 {[%clk 0:02:35.6]} 31. Bc3 {[%clk 0:02:20.7]} 31... Re2 {[%clk
0:02:23.1]} 32. Re1 {[%clk 0:02:16.7]} 32... Rxe1+ {[%clk 0:02:19]} 33. Bxe1
{[%clk 0:02:14.8]} 33... Ng7 {[%clk 0:02:16.3]} 34. Na1 {[%clk 0:02:08.8]} 34...
Kd7 {[%clk 0:02:14.5]} 35. Nc2 {[%clk 0:02:08.1]} 35... a5 {[%clk 0:02:11.8]}
36. b4 {[%clk 0:02:02.2]} 36... a4 {[%clk 0:02:05.2]} 37. Kf2 {[%clk 0:01:57.6]}
37... Kc6 {[%clk 0:02:00.9]} 38. Ke2 {[%clk 0:01:29.8]} 38... Kb5 {[%clk
0:01:59.7]} 39. Kd2 {[%clk 0:01:28.5]} 39... Kc4 {[%clk 0:01:57.8]} 40. Na1
{[%clk 0:01:19.5]} 40... Ne8 {[%clk 0:01:54.5]} 41. Kc2 {[%clk 0:01:16.2]} 41...
Nc7 {[%clk 0:01:51]} 42. Kd2 {[%clk 0:01:07.6]} 42... Nb5 {[%clk 0:01:49]} 43.
Kc2 {[%clk 0:00:47.1]} 43... Nxa3+ {[%clk 0:01:47.3]} 44. Kb2 {[%clk 0:00:46.4]}
44... Nb5 {[%clk 0:01:42.6]} 45. Nc2 {[%clk 0:00:44]} 45... Kd3 {[%clk
0:01:30.6]} 46. Bf2 {[%clk 0:00:34.1]} 46... Ke2 {[%clk 0:01:23.5]} 47. Be1
{[%clk 0:00:21.7]} 47... h5 {[%clk 0:01:08.5]} 48. h4 {[%clk 0:00:15.6]} 48...
Bf6 {[%clk 0:01:05.7]} 49. g3 {[%clk 0:00:14.9]} 49... Be7 {[%clk 0:01:03.5]}
50. Kb1 {[%clk 0:00:05]} 50... a3 {[%clk 0:01:00.3]} 51. Ka2 {[%clk 0:00:03.7]}
51... Kd1 {[%clk 0:00:55.7]} 52. Nxa3 {[%clk 0:00:01]} 52... Nxa3 {[%clk
0:00:53.9]} 0-1

[Event "Live Chess"]
[Site "Chess.com"]
[Date "2024.06.02"]
[Round "-"]
[White "KeithArkell"]
[Black "elis06"]
[Result "1-0"]
[WhiteElo "2428"]
[BlackElo "2325"]
[TimeControl "300"]
[EndTime "4:40:36 PDT"]
[Termination "KeithArkell won by checkmate"]

1. d4 {[%clk 0:04:57.8]} 1... d5 {[%clk 0:04:58.1]} 2. Nf3 {[%clk 0:04:56.9]}
2... Nf6 {[%clk 0:04:57.1]} 3. c4 {[%clk 0:04:56]} 3... e6 {[%clk 0:04:55.5]} 4.
cxd5 {[%clk 0:04:54.8]} 4... exd5 {[%clk 0:04:54.8]} 5. Nc3 {[%clk 0:04:54.5]}
5... c6 {[%clk 0:04:53.2]} 6. Qc2 {[%clk 0:04:53.7]} 6... Bd6 {[%clk 0:04:50]}
7. Bg5 {[%clk 0:04:52.5]} 7... Be6 {[%clk 0:04:47]} 8. e3 {[%clk 0:04:50.7]}
8... Nbd7 {[%clk 0:04:46]} 9. Bd3 {[%clk 0:04:49.4]} 9... h6 {[%clk 0:04:44.8]}
10. Bh4 {[%clk 0:04:48.7]} 10... O-O {[%clk 0:04:44.1]} 11. Bh7+ {[%clk
0:04:44.9]} 11... Kh8 {[%clk 0:04:40.7]} 12. Bf5 {[%clk 0:04:43.9]} 12... Qe7
{[%clk 0:04:23.9]} 13. O-O {[%clk 0:04:41.9]} 13... a5 {[%clk 0:04:22.2]} 14.
Rfc1 {[%clk 0:04:38.6]} 14... b5 {[%clk 0:04:19.8]} 15. Ne2 {[%clk 0:04:37.1]}
15... Rac8 {[%clk 0:04:17.1]} 16. Bg3 {[%clk 0:04:30.3]} 16... Nb6 {[%clk
0:04:15.1]} 17. b3 {[%clk 0:04:28.8]} 17... Ba3 {[%clk 0:04:11.5]} 18. Rd1
{[%clk 0:04:27]} 18... Bd6 {[%clk 0:04:09.9]} 19. Bxd6 {[%clk 0:04:25.5]} 19...
Qxd6 {[%clk 0:04:09]} 20. Rac1 {[%clk 0:04:23.1]} 20... a4 {[%clk 0:04:04.4]}
21. g3 {[%clk 0:04:19.6]} 21... axb3 {[%clk 0:04:01.4]} 22. axb3 {[%clk
0:04:18.7]} 22... Nfd7 {[%clk 0:03:53]} 23. Nf4 {[%clk 0:04:13]} 23... Bxf5
{[%clk 0:03:47.4]} 24. Qxf5 {[%clk 0:04:12.9]} 24... g6 {[%clk 0:03:45.8]} 25.
Qb1 {[%clk 0:04:03.4]} 25... Kg7 {[%clk 0:03:43.4]} 26. Nd3 {[%clk 0:04:02.3]}
26... f6 {[%clk 0:03:36.2]} 27. Nc5 {[%clk 0:04:01.1]} 27... Nxc5 {[%clk
0:03:33.3]} 28. Rxc5 {[%clk 0:04:01]} 28... Nd7 {[%clk 0:03:32.8]} 29. Rc2
{[%clk 0:03:59.9]} 29... Ra8 {[%clk 0:03:29.3]} 30. Nh4 {[%clk 0:03:56.1]} 30...
f5 {[%clk 0:03:27]} 31. Rdc1 {[%clk 0:03:52.1]} 31... Ra6 {[%clk 0:03:25.9]} 32.
Nf3 {[%clk 0:03:48.4]} 32... Rfa8 {[%clk 0:03:23.7]} 33. Qb2 {[%clk 0:03:46.8]}
33... Re8 {[%clk 0:03:08.1]} 34. Ne5 {[%clk 0:03:39.4]} 34... Nxe5 {[%clk
0:03:04.9]} 35. dxe5 {[%clk 0:03:38.2]} 35... Qxe5 {[%clk 0:03:03.8]} 36. Qxe5+
{[%clk 0:03:37.4]} 36... Rxe5 {[%clk 0:03:03.1]} 37. Rxc6 {[%clk 0:03:37]} 37...
Ra3 {[%clk 0:02:59.7]} 38. Rb6 {[%clk 0:03:35.8]} 38... Rxb3 {[%clk 0:02:58.2]}
39. Rc7+ {[%clk 0:03:34.7]} 39... Kf8 {[%clk 0:02:55.3]} 40. Rf6+ {[%clk
0:03:31.3]} 40... Ke8 {[%clk 0:02:53.1]} 41. Rxg6 {[%clk 0:03:30.3]} 41... Re7
{[%clk 0:02:48.7]} 42. Rc5 {[%clk 0:03:21.2]} 42... b4 {[%clk 0:02:45.6]} 43.
Rxd5 {[%clk 0:03:14.1]} 43... Rb7 {[%clk 0:02:39.9]} 44. Rxf5 {[%clk 0:03:13]}
44... Rb1+ {[%clk 0:02:37]} 45. Kg2 {[%clk 0:03:11.7]} 45... Re7 {[%clk
0:02:25.7]} 46. Rb6 {[%clk 0:03:08.1]} 46... b3 {[%clk 0:02:24.7]} 47. Rfb5
{[%clk 0:03:06.4]} 47... Rf7 {[%clk 0:02:21.3]} 48. Rxb3 {[%clk 0:03:05]} 48...
Rc1 {[%clk 0:02:20.1]} 49. Rb8+ {[%clk 0:03:03.9]} 49... Ke7 {[%clk 0:02:19.2]}
50. R8b7+ {[%clk 0:03:03.4]} 50... Kf8 {[%clk 0:02:18.3]} 51. Rxf7+ {[%clk
0:03:02.6]} 51... Kxf7 {[%clk 0:02:17.8]} 52. g4 {[%clk 0:03:00.3]} 52... Kg6
{[%clk 0:02:16.9]} 53. Rb6+ {[%clk 0:02:58.9]} 53... Kg7 {[%clk 0:02:16.1]} 54.
h4 {[%clk 0:02:57.5]} 54... Rc2 {[%clk 0:02:15.5]} 55. Kf3 {[%clk 0:02:56.3]}
55... Rc4 {[%clk 0:02:15]} 56. Kg3 {[%clk 0:02:55.2]} 56... Rc5 {[%clk
0:02:14.4]} 57. f4 {[%clk 0:02:53.3]} 57... h5 {[%clk 0:02:13.7]} 58. gxh5
{[%clk 0:02:52]} 58... Rxh5 {[%clk 0:02:12.7]} 59. e4 {[%clk 0:02:51.1]} 59...
Rc5 {[%clk 0:02:11.6]} 60. e5 {[%clk 0:02:50.1]} 60... Rc3+ {[%clk 0:02:10.7]}
61. Kg4 {[%clk 0:02:49.5]} 61... Rc7 {[%clk 0:02:10]} 62. Kg5 {[%clk 0:02:48.1]}
62... Kg8 {[%clk 0:02:09.5]} 63. h5 {[%clk 0:02:47.3]} 63... Rg7+ {[%clk
0:02:08.8]} 64. Kf5 {[%clk 0:02:45.1]} 64... Kh7 {[%clk 0:02:08.3]} 65. h6
{[%clk 0:02:41.7]} 65... Rf7+ {[%clk 0:02:07.4]} 66. Ke4 {[%clk 0:02:40.9]}
66... Rf8 {[%clk 0:02:06.6]} 67. f5 {[%clk 0:02:40]} 67... Kh8 {[%clk
0:02:06.2]} 68. Kf4 {[%clk 0:02:39.2]} 68... Rf7 {[%clk 0:02:05.7]} 69. Kg5
{[%clk 0:02:37]} 69... Re7 {[%clk 0:02:05]} 70. e6 {[%clk 0:02:36.2]} 70... Re8
{[%clk 0:02:04.5]} 71. Rb7 {[%clk 0:02:34.9]} 71... Rf8 {[%clk 0:02:03.8]} 72.
f6 {[%clk 0:02:33.7]} 72... Rg8+ {[%clk 0:02:03.2]} 73. Kf5 {[%clk 0:02:32.9]}
73... Rf8 {[%clk 0:02:02.7]} 74. e7 {[%clk 0:02:32]} 74... Re8 {[%clk
0:02:02.1]} 75. f7 {[%clk 0:02:30.1]} 75... Rxe7 {[%clk 0:01:57.5]} 76. f8=Q+
{[%clk 0:02:29.1]} 76... Kh7 {[%clk 0:01:56.7]} 77. Rxe7# {[%clk 0:02:28.3]} 1-0

[Event "Live Chess"]
[Site "Chess.com"]
[Date "2024.06.02"]
[Round "-"]
[White "slava_ukr"]
[Black "Colm_Buckley"]
[Result "1-0"]
[WhiteElo "2384"]
[BlackElo "1868"]
[TimeControl "300"]
[EndTime "4:41:43 PDT"]
[Termination "slava_ukr won by checkmate"]

1. e4 {[%clk 0:04:57.4]} 1... e6 {[%clk 0:04:58.7]} 2. d4 {[%clk 0:04:56.4]}
2... d5 {[%clk 0:04:58.2]} 3. exd5 {[%clk 0:04:55.6]} 3... exd5 {[%clk
0:04:56.7]} 4. Nf3 {[%clk 0:04:55]} 4... c6 {[%clk 0:04:52.9]} 5. Bd3 {[%clk
0:04:53.5]} 5... Bd6 {[%clk 0:04:51.1]} 6. O-O {[%clk 0:04:52.3]} 6... Ne7
{[%clk 0:04:50.1]} 7. Re1 {[%clk 0:04:50.8]} 7... O-O {[%clk 0:04:44.4]} 8. Nc3
{[%clk 0:04:49.9]} 8... Bg4 {[%clk 0:04:39.5]} 9. Bxh7+ {[%clk 0:04:48.6]} 9...
Kxh7 {[%clk 0:04:29.9]} 10. Ng5+ {[%clk 0:04:47.4]} 10... Kg6 {[%clk 0:04:14.4]}
11. Qxg4 {[%clk 0:04:46.4]} 11... f5 {[%clk 0:04:09.3]} 12. Qh4 {[%clk
0:04:24.9]} 12... Rh8 {[%clk 0:03:56]} 13. Re6# {[%clk 0:04:23.2]} 1-0

[Event "Live Chess"]
[Site "Chess.com"]
[Date "2024.06.02"]
[Round "-"]
[White "JanMur7"]
[Black "defenderalist"]
[Result "1-0"]
[WhiteElo "2291"]
[BlackElo "1533"]
[TimeControl "300"]
[EndTime "4:42:15 PDT"]
[Termination "JanMur7 won by resignation"]

1. c4 {[%clk 0:04:58.1]} 1... e5 {[%clk 0:04:57.8]} 2. Nc3 {[%clk 0:04:57.2]}
2... Nf6 {[%clk 0:04:53.6]} 3. Nf3 {[%clk 0:04:53.5]} 3... d6 {[%clk 0:04:48.1]}
4. d4 {[%clk 0:04:51.3]} 4... exd4 {[%clk 0:04:47.4]} 5. Nxd4 {[%clk 0:04:51.2]}
5... Nc6 {[%clk 0:04:46.1]} 6. Nxc6 {[%clk 0:04:49.2]} 6... bxc6 {[%clk
0:04:46]} 7. g3 {[%clk 0:04:48.4]} 7... Be6 {[%clk 0:04:43.6]} 8. Bg2 {[%clk
0:04:47.1]} 8... Qd7 {[%clk 0:04:38.3]} 9. Qa4 {[%clk 0:04:43.4]} 9... d5 {[%clk
0:04:21.5]} 10. cxd5 {[%clk 0:04:38.5]} 10... cxd5 {[%clk 0:04:15.4]} 11. Qxd7+
{[%clk 0:04:38.1]} 11... Kxd7 {[%clk 0:04:12.2]} 12. Bg5 {[%clk 0:04:35.9]}
12... Be7 {[%clk 0:04:10.1]} 13. O-O-O {[%clk 0:04:31]} 13... c6 {[%clk
0:04:08.7]} 14. e4 {[%clk 0:04:28.1]} 14... h6 {[%clk 0:04:06.9]} 15. exd5
{[%clk 0:04:21.2]} 15... cxd5 {[%clk 0:04:00.5]} 16. Bxf6 {[%clk 0:04:15.3]}
16... Bxf6 {[%clk 0:03:55.6]} 17. Nxd5 {[%clk 0:04:07.9]} 17... Rhc8+ {[%clk
0:03:49.1]} 18. Kb1 {[%clk 0:04:06]} 18... Bxd5 {[%clk 0:03:37.2]} 19. Bxd5
{[%clk 0:04:03.6]} 19... Rab8 {[%clk 0:03:24.5]} 20. Bb7+ {[%clk 0:04:02.4]}
20... Ke7 {[%clk 0:03:18.4]} 21. Bxc8 {[%clk 0:04:00.4]} 21... Rxb2+ {[%clk
0:03:09.9]} 22. Kc1 {[%clk 0:03:58.7]} 22... Rxf2 {[%clk 0:02:55.8]} 23. Rhe1+
{[%clk 0:03:56.6]} 23... Kf8 {[%clk 0:02:50.9]} 24. Bd7 {[%clk 0:03:55.2]} 24...
Bb2+ {[%clk 0:02:20.3]} 25. Kb1 {[%clk 0:03:52.3]} 25... f6 {[%clk 0:02:04.8]}
26. Be8 {[%clk 0:03:46.5]} 26... Bc3 {[%clk 0:01:53.4]} 27. Bg6 {[%clk
0:03:39.9]} 1-0

[Event "Live Chess"]
[Site "Chess.com"]
[Date "2024.06.02"]
[Round "-"]
[White "elis06"]
[Black "Andriy_Yaremovych"]
[Result "1-0"]
[WhiteElo "2326"]
[BlackElo "1620"]
[TimeControl "300"]
[EndTime "4:42:16 PDT"]
[Termination "elis06 won by resignation"]

1. d4 {[%clk 0:04:57.9]} 1... b6 {[%clk 0:04:59.9]} 2. Nf3 {[%clk 0:04:56.3]}
2... Bb7 {[%clk 0:04:59.8]} 3. e3 {[%clk 0:04:54.9]} 3... Nf6 {[%clk 0:04:59.7]}
4. Bd3 {[%clk 0:04:54]} 4... g6 {[%clk 0:04:59.6]} 5. O-O {[%clk 0:04:53.2]}
5... Bg7 {[%clk 0:04:59.1]} 6. b3 {[%clk 0:04:52.6]} 6... d5 {[%clk 0:04:58.6]}
7. Bb2 {[%clk 0:04:51.9]} 7... Nc6 {[%clk 0:04:57.8]} 8. Nbd2 {[%clk 0:04:51.3]}
8... e6 {[%clk 0:04:57.3]} 9. c4 {[%clk 0:04:50.6]} 9... Qe7 {[%clk 0:04:56.4]}
10. a4 {[%clk 0:04:49.2]} 10... O-O-O {[%clk 0:04:55.1]} 11. c5 {[%clk
0:04:35.5]} 11... Kb8 {[%clk 0:04:52.6]} 12. cxb6 {[%clk 0:04:34.3]} 12... axb6
{[%clk 0:04:51.9]} 13. Bb5 {[%clk 0:04:32.5]} 13... Na5 {[%clk 0:04:50.5]} 14.
Bc3 {[%clk 0:04:30.4]} 14... Ne4 {[%clk 0:04:44.7]} 15. Nxe4 {[%clk 0:04:27.4]}
15... dxe4 {[%clk 0:04:43.3]} 16. Nd2 {[%clk 0:04:26.7]} 16... f5 {[%clk
0:04:41.6]} 17. b4 {[%clk 0:04:25.7]} 17... Nc6 {[%clk 0:04:39.1]} 18. a5 {[%clk
0:04:24.9]} 18... Nxb4 {[%clk 0:04:37.5]} 19. axb6 {[%clk 0:04:20.9]} 19... cxb6
{[%clk 0:04:29.9]} 20. Qa4 {[%clk 0:04:19.6]} 20... Nd5 {[%clk 0:04:23.9]} 21.
Qa7+ {[%clk 0:04:16.8]} 21... Kc8 {[%clk 0:04:22.9]} 22. Rfc1 {[%clk 0:04:11.2]}
1-0

[Event "Live Chess"]
[Site "Chess.com"]
[Date "2024.06.02"]
[Round "-"]
[White "r0ad_t0-gm"]
[Black "Crowded_House"]
[Result "1-0"]
[WhiteElo "2285"]
[BlackElo "1657"]
[TimeControl "300"]
[EndTime "4:42:20 PDT"]
[Termination "r0ad_t0-gm won by checkmate"]

1. Nf3 {[%clk 0:04:58.7]} 1... e6 {[%clk 0:04:58.7]} 2. g3 {[%clk 0:04:57.8]}
2... d5 {[%clk 0:04:58]} 3. Bg2 {[%clk 0:04:57.3]} 3... c5 {[%clk 0:04:54.2]} 4.
O-O {[%clk 0:04:57.2]} 4... Nc6 {[%clk 0:04:53.3]} 5. d3 {[%clk 0:04:57.1]} 5...
Nf6 {[%clk 0:04:52.1]} 6. Nbd2 {[%clk 0:04:57]} 6... Bd6 {[%clk 0:04:51.1]} 7.
e4 {[%clk 0:04:56.9]} 7... dxe4 {[%clk 0:04:49.3]} 8. dxe4 {[%clk 0:04:56.8]}
8... Ne5 {[%clk 0:04:46.6]} 9. Nxe5 {[%clk 0:04:52]} 9... Bxe5 {[%clk
0:04:45.7]} 10. Nc4 {[%clk 0:04:50.4]} 10... Bc7 {[%clk 0:04:39.5]} 11. Qxd8+
{[%clk 0:04:47.9]} 11... Kxd8 {[%clk 0:04:38.2]} 12. Rd1+ {[%clk 0:04:45.8]}
12... Ke7 {[%clk 0:04:29.8]} 13. e5 {[%clk 0:04:45]} 13... Nd7 {[%clk
0:04:15.2]} 14. f4 {[%clk 0:04:43.7]} 14... Nb6 {[%clk 0:04:02.7]} 15. Na5
{[%clk 0:04:29.8]} 15... Rb8 {[%clk 0:03:45.3]} 16. b3 {[%clk 0:04:24.1]} 16...
Rd8 {[%clk 0:03:36.8]} 17. Ba3 {[%clk 0:04:19.7]} 17... Nd7 {[%clk 0:03:18.7]}
18. Nc4 {[%clk 0:04:05.2]} 18... b6 {[%clk 0:03:09.9]} 19. Rd2 {[%clk
0:03:50.4]} 19... Bb7 {[%clk 0:03:08.9]} 20. Rad1 {[%clk 0:03:44.7]} 20... Bxg2
{[%clk 0:03:07.7]} 21. Kxg2 {[%clk 0:03:44.6]} 21... Nf8 {[%clk 0:02:58.9]} 22.
h4 {[%clk 0:03:38.1]} 22... Rxd2+ {[%clk 0:02:57.1]} 23. Rxd2 {[%clk 0:03:38]}
23... Rd8 {[%clk 0:02:56.3]} 24. h5 {[%clk 0:03:35.4]} 24... Rxd2+ {[%clk
0:02:55.1]} 25. Nxd2 {[%clk 0:03:35.3]} 25... f6 {[%clk 0:02:39.9]} 26. Bb2
{[%clk 0:03:33.1]} 26... fxe5 {[%clk 0:02:37.7]} 27. fxe5 {[%clk 0:03:31.9]}
27... Nd7 {[%clk 0:02:32.9]} 28. Nf3 {[%clk 0:03:31.1]} 28... Kf7 {[%clk
0:02:29.8]} 29. Kf2 {[%clk 0:03:29.1]} 29... g6 {[%clk 0:02:28.7]} 30. g4 {[%clk
0:03:28.3]} 30... gxh5 {[%clk 0:02:27.4]} 31. gxh5 {[%clk 0:03:28.2]} 31... Kg7
{[%clk 0:02:22.3]} 32. Kg3 {[%clk 0:03:27.1]} 32... Kh6 {[%clk 0:02:21.2]} 33.
Kg4 {[%clk 0:03:26.7]} 33... Bd8 {[%clk 0:02:13]} 34. Bc1+ {[%clk 0:03:24.5]}
34... Kg7 {[%clk 0:02:11.3]} 35. Bf4 {[%clk 0:03:06.2]} 35... Nb8 {[%clk
0:01:57.9]} 36. Bg5 {[%clk 0:02:58]} 36... Bc7 {[%clk 0:01:47.9]} 37. Bf6+
{[%clk 0:02:52.5]} 37... Kg8 {[%clk 0:01:46.7]} 38. Ng5 {[%clk 0:02:37.1]} 38...
Nc6 {[%clk 0:01:45.1]} 39. Kf4 {[%clk 0:02:32.9]} 39... Nb4 {[%clk 0:01:35.9]}
40. Nxe6 {[%clk 0:02:29]} 40... Bb8 {[%clk 0:01:32.6]} 41. h6 {[%clk 0:02:09.6]}
41... Nxc2 {[%clk 0:01:28.7]} 42. Ng5 {[%clk 0:02:07.8]} 42... Nb4 {[%clk
0:01:18.6]} 43. a4 {[%clk 0:02:06.8]} 43... Nd5+ {[%clk 0:01:13.4]} 44. Kf5
{[%clk 0:02:04.9]} 44... Nxf6 {[%clk 0:00:55.2]} 45. exf6 {[%clk 0:01:59.3]}
45... a6 {[%clk 0:00:38.7]} 46. Ke6 {[%clk 0:01:57.4]} 46... b5 {[%clk
0:00:37.7]} 47. f7+ {[%clk 0:01:57.1]} 47... Kf8 {[%clk 0:00:35.6]} 48. Nxh7#
{[%clk 0:01:56.2]} 1-0